fUSD/lending_fUSD_20260601
["ID","MTS","AMOUNT","RATE_DAILY","PERIOD"]
[423617041,1780260668000,-1412.603045,0.000393,7]
[423617045,1780260668000,-1412.603045,0.000393,7]
[423617042,1780260668000,-1412.603045,0.000393,7]
[423617044,1780260668000,-1412.603045,0.000393,7]
[423617043,1780260668000,-1412.603045,0.000393,7]
[423617018,1780260668000,-151.0,0.000393,30]
[423617034,1780260668000,-151.0,0.000393,30]
[423617013,1780260668000,-166.665232,0.000393,30]
[423617002,1780260668000,-151.0,0.000393,30]
[423617015,1780260668000,-166.665232,0.000393,30]
[423617049,1780260668000,-1412.603041,0.000393,7]
[423616997,1780260668000,-151.0,0.000393,30]
[423616988,1780260668000,-151.0,0.000393,30]
[423616987,1780260668000,-151.0,0.000393,30]
[423616989,1780260668000,-170.240989,0.000393,30]
[423616998,1780260668000,-151.0,0.000393,30]
[423616992,1780260668000,-170.240989,0.000393,30]
[423616991,1780260668000,-151.0,0.000393,30]
[423616995,1780260668000,-170.240989,0.000393,30]
[423616993,1780260668000,-151.0,0.000393,30]
[423616990,1780260668000,-151.0,0.000393,30]
[423616994,1780260668000,-151.0,0.000393,30]
[423616996,1780260668000,-151.0,0.000393,15]
[423617025,1780260668000,-151.0,0.000393,30]
[423616999,1780260668000,-170.240985,0.000393,30]
[423617001,1780260668000,-151.0,0.000393,15]
[423617003,1780260668000,-151.0,0.000393,15]
[423617009,1780260668000,-166.665232,0.000393,30]
[423617011,1780260668000,-199.566695,0.000393,15]
[423617006,1780260668000,-151.0,0.000393,15]
[423617007,1780260668000,-151.0,0.000393,15]
[423617012,1780260668000,-166.665232,0.000393,30]
[423617000,1780260668000,-151.0,0.000393,30]
[423617004,1780260668000,-221.862592,0.000393,30]
[423617008,1780260668000,-151.0,0.000393,15]
[423617005,1780260668000,-266.388263,0.000393,30]
[423617014,1780260668000,-166.665232,0.000393,30]
[423617024,1780260668000,-166.665232,0.000393,30]
[423617010,1780260668000,-166.665232,0.000393,30]
[423617047,1780260668000,-1412.603045,0.000393,7]
[423617050,1780260668000,-301.715813,0.000393,30]
[423617039,1780260668000,-1412.603045,0.000393,7]
[423617079,1780260668000,-638.091163,0.000393,30]
[423617082,1780260668000,-4433.34741832,0.00039315,120]
[423617076,1780260668000,-453.541394,0.000393,30]
[423617081,1780260668000,-151.25,0.00039302,120]
[423617087,1780260668000,-1000.0,0.00039331,30]
[423617088,1780260668000,-1500.0,0.00039331,30]
[423617089,1780260668000,-620.0,0.00039331,30]
[423617090,1780260668000,-500.0,0.00039331,30]
[423617092,1780260668000,-151.0,0.00039331,30]
[423617094,1780260668000,-500.0,0.00039331,30]
[423617091,1780260668000,-1030.0,0.00039331,30]
[423617093,1780260668000,-499.64210972,0.00039331,30]
[423617095,1780260668000,-6888.0,0.00039331,30]
[423617084,1780260668000,-1521.46317608,0.0003932,30]
[423617097,1780260668000,-151.0,0.00039331,30]
[423617098,1780260668000,-220.0,0.00039331,30]
[423617099,1780260668000,-500.0,0.00039331,30]
[423617101,1780260668000,-271.14165282,0.00039331,30]
[423617100,1780260668000,-520.0,0.00039331,30]
[423617103,1780260668000,-274.27353427,0.00039331,30]
[423617107,1780260668000,-151.0,0.00039331,30]
[423617108,1780260668000,-605.49915018,0.00039331,30]
[423617102,1780260668000,-200.0,0.00039331,30]
[423617104,1780260668000,-500.0,0.00039331,30]
[423617105,1780260668000,-152.0,0.00039331,30]
[423617048,1780260668000,-1412.603045,0.000393,7]
[423617110,1780260668000,-151.0,0.00039331,30]
[423617109,1780260668000,-500.0,0.00039331,30]
[423617096,1780260668000,-160.0,0.00039331,30]
[423617086,1780260668000,-151.0,0.00039331,30]
[423617106,1780260668000,-251.0,0.00039331,30]
[423617083,1780260668000,-4405.17592809,0.00039315,60]
[423617085,1780260668000,-300.0,0.0003933,10]
[423617062,1780260668000,-151.738666,0.000393,30]
[423617051,1780260668000,-151.0,0.000393,30]
[423617055,1780260668000,-151.0,0.000393,30]
[423617054,1780260668000,-151.0,0.000393,30]
[423617053,1780260668000,-151.0,0.000393,30]
[423617057,1780260668000,-151.0,0.000393,30]
[423617060,1780260668000,-151.0,0.000393,30]
[423617059,1780260668000,-151.0,0.000393,30]
[423617061,1780260668000,-151.0,0.000393,30]
[423617056,1780260668000,-151.0,0.000393,30]
[423617058,1780260668000,-151.0,0.000393,30]
[423617063,1780260668000,-151.0,0.000393,30]
[423617064,1780260668000,-175.73681,0.000393,30]
[423617052,1780260668000,-151.0,0.000393,30]
[423617066,1780260668000,-453.541394,0.000393,30]
[423617065,1780260668000,-453.541394,0.000393,30]
[423617080,1780260668000,-638.091163,0.000393,30]
[423617074,1780260668000,-453.541394,0.000393,30]
[423617077,1780260668000,-453.54139,0.000393,30]
[423617075,1780260668000,-453.541394,0.000393,30]
[423617070,1780260668000,-453.541394,0.000393,30]
[423617078,1780260668000,-638.091163,0.000393,30]
[423617072,1780260668000,-453.541394,0.000393,30]
[423617068,1780260668000,-151.0,0.000393,30]
[423617071,1780260668000,-453.541394,0.000393,30]
[423617069,1780260668000,-453.541394,0.000393,30]
[423617067,1780260668000,-453.541394,0.000393,30]
[423617073,1780260668000,-453.541394,0.000393,30]
[423617153,1780260669000,-152.0,0.00039332,30]
[423617149,1780260669000,-1546.0,0.00039332,30]
[423617147,1780260669000,-1546.0,0.00039332,30]
[423617148,1780260669000,-1546.0,0.00039332,30]
[423617146,1780260669000,-1546.0,0.00039332,30]
[423617156,1780260669000,-152.0,0.00039332,30]
[423617142,1780260669000,-1546.0,0.00039332,30]
[423617143,1780260669000,-1546.0,0.00039332,30]
[423617134,1780260669000,-1546.0,0.00039332,30]
[423617154,1780260669000,-152.0,0.00039332,30]
[423617145,1780260669000,-1546.0,0.00039332,30]
[423617139,1780260669000,-1546.0,0.00039332,30]
[423617162,1780260669000,-151.0,0.00039332,30]
[423617151,1780260669000,-163.0,0.00039332,30]
[423617152,1780260669000,-300.0,0.00039332,30]
[423617150,1780260669000,-1613.94599797,0.00039332,30]
[423617157,1780260669000,-152.0,0.00039332,30]
[423617159,1780260669000,-151.0,0.00039332,30]
[423617161,1780260669000,-151.0,0.00039332,30]
[423617160,1780260669000,-151.0,0.00039332,30]
[423617168,1780260669000,-151.0,0.00039332,30]
[423617164,1780260669000,-151.0,0.00039332,30]
[423617165,1780260669000,-151.0,0.00039332,30]
[423617163,1780260669000,-151.0,0.00039332,30]
[423617158,1780260669000,-240.0,0.00039332,30]
[423617144,1780260669000,-1546.0,0.00039332,30]
[423617155,1780260669000,-152.0,0.00039332,30]
[423617141,1780260669000,-1546.0,0.00039332,30]
[423617120,1780260669000,-195.74270933,0.00039332,120]
[423617138,1780260669000,-1546.0,0.00039332,30]
[423617166,1780260669000,-151.0,0.00039332,30]
[423617112,1780260669000,-200.0,0.00039331,30]
[423617117,1780260669000,-213.5515963,0.00039332,120]
[423617113,1780260669000,-300.0,0.00039332,10]
[423617111,1780260669000,-151.0,0.00039331,30]
[423617114,1780260669000,-1200.0,0.00039332,60]
[423617115,1780260669000,-199.97123854,0.00039332,120]
[423617116,1780260669000,-182.3634702,0.00039332,120]
[423617118,1780260669000,-213.55159628,0.00039332,120]
[423617119,1780260669000,-294.37031762,0.00039332,120]
[423617121,1780260669000,-165.89890827,0.00039332,120]
[423617131,1780260669000,-1546.0,0.00039332,30]
[423617140,1780260669000,-1546.0,0.00039332,30]
[423617132,1780260669000,-1546.0,0.00039332,30]
[423617125,1780260669000,-1546.0,0.00039332,30]
[423617130,1780260669000,-1546.0,0.00039332,30]
[423617126,1780260669000,-1546.0,0.00039332,30]
[423617123,1780260669000,-1546.0,0.00039332,30]
[423617127,1780260669000,-1546.0,0.00039332,30]
[423617124,1780260669000,-1546.0,0.00039332,30]
[423617129,1780260669000,-1546.0,0.00039332,30]
[423617128,1780260669000,-1546.0,0.00039332,30]
[423617133,1780260669000,-1546.0,0.00039332,30]
[423617136,1780260669000,-1546.0,0.00039332,30]
[423617137,1780260669000,-1546.0,0.00039332,30]
[423617135,1780260669000,-1546.0,0.00039332,30]
[423617122,1780260669000,-165.89890825,0.00039332,120]
[423617167,1780260669000,-151.0,0.00039332,30]
[423617188,1780260669000,-500.0,0.00039332,30]
[423617171,1780260669000,-151.0,0.00039332,30]
[423617197,1780260669000,-2045.0,0.00039332,120]
[423617198,1780260669000,-2045.0,0.00039332,120]
[423617202,1780260669000,-2045.0,0.00039332,120]
[423617205,1780260669000,-383.93244246,0.00039333,2]
[423617199,1780260669000,-2045.0,0.00039332,120]
[423617207,1780260669000,-1463.69382468,0.00039344,2]
[423617208,1780260669000,-1463.69382468,0.00039344,2]
[423617211,1780260669000,-150.0,0.00039353,2]
[423617209,1780260669000,-305.02295186,0.00039347,7]
[423617210,1780260669000,-488.39351,0.00039351,32]
[423617215,1780260669000,-5000.0,0.00039361,2]
[423617217,1780260669000,-618.76,0.00039365,120]
[423617201,1780260669000,-2045.0,0.00039332,120]
[423617212,1780260669000,-250.0,0.00039361,2]
[423617213,1780260669000,-250.0,0.00039361,2]
[423617216,1780260669000,-300.91868834,0.00039364,7]
[423617218,1780260669000,-618.72,0.00039365,120]
[423617221,1780260669000,-618.72,0.00039365,120]
[423617223,1780260669000,-618.72,0.00039365,120]
[423617224,1780260669000,-618.72,0.00039365,120]
[423617220,1780260669000,-618.72,0.00039365,120]
[423617225,1780260669000,-618.72,0.00039365,120]
[423617222,1780260669000,-618.72,0.00039365,120]
[423617227,1780260669000,-618.72,0.00039365,120]
[423617226,1780260669000,-618.72,0.00039365,120]
[423617169,1780260669000,-151.0,0.00039332,30]
[423617214,1780260669000,-5000.0,0.00039361,2]
[423617200,1780260669000,-2045.0,0.00039332,120]
[423617219,1780260669000,-618.72,0.00039365,120]
[423617204,1780260669000,-2047.879,0.00039332,120]
[423617203,1780260669000,-2045.0,0.00039332,120]
[423617173,1780260669000,-153.0,0.00039332,30]
[423617175,1780260669000,-153.0,0.00039332,30]
[423617172,1780260669000,-162.57738279,0.00039332,30]
[423617177,1780260669000,-153.0,0.00039332,30]
[423617178,1780260669000,-153.0,0.00039332,30]
[423617179,1780260669000,-153.0,0.00039332,30]
[423617174,1780260669000,-153.0,0.00039332,30]
[423617170,1780260669000,-151.0,0.00039332,30]
[423617180,1780260669000,-153.0,0.00039332,30]
[423617181,1780260669000,-153.0,0.00039332,30]
[423617183,1780260669000,-153.0,0.00039332,30]
[423617193,1780260669000,-156.13637221,0.00039332,120]
[423617176,1780260669000,-153.0,0.00039332,30]
[423617182,1780260669000,-153.0,0.00039332,30]
[423617195,1780260669000,-2045.0,0.00039332,120]
[423617194,1780260669000,-2110.0,0.00039332,2]
[423617196,1780260669000,-2045.0,0.00039332,120]
[423617228,1780260669000,-618.72,0.00039365,120]
[423617192,1780260669000,-187.35380878,0.00039332,120]
[423617190,1780260669000,-187.35380879,0.00039332,120]
[423617206,1780260669000,-150.82036713,0.00039338,2]
[423617189,1780260669000,-157.00557815,0.00039332,30]
[423617191,1780260669000,-158.74335402,0.00039332,120]
[423617185,1780260669000,-154.0,0.00039332,30]
[423617187,1780260669000,-503.19129414,0.00039332,60]
[423617184,1780260669000,-231.81231694,0.00039332,30]
[423617186,1780260669000,-500.0,0.00039332,60]
[423617254,1780260670000,-524.11239551,0.00039379,120]
[423617252,1780260670000,-524.11239551,0.00039379,120]
[423617258,1780260670000,-524.11239551,0.00039379,120]
[423617256,1780260670000,-524.11239551,0.00039379,120]
[423617261,1780260670000,-524.11239551,0.00039379,120]
[423617259,1780260670000,-524.11239551,0.00039379,120]
[423617260,1780260670000,-524.11239551,0.00039379,120]
[423617264,1780260670000,-524.11239551,0.00039379,120]
[423617263,1780260670000,-524.11239551,0.00039379,120]
[423617266,1780260670000,-524.11239546,0.00039379,120]
[423617271,1780260670000,-520.68892442,0.00039379,120]
[423617257,1780260670000,-524.11239551,0.00039379,120]
[423617267,1780260670000,-520.68892442,0.00039379,120]
[423617262,1780260670000,-524.11239551,0.00039379,120]
[423617268,1780260670000,-520.68892442,0.00039379,120]
[423617269,1780260670000,-520.68892442,0.00039379,120]
[423617280,1780260670000,-520.68892442,0.00039379,120]
[423617273,1780260670000,-520.68892442,0.00039379,120]
[423617249,1780260670000,-524.11239551,0.00039379,120]
[423617265,1780260670000,-524.11239551,0.00039379,120]
[423617248,1780260670000,-524.11239551,0.00039379,120]
[423617233,1780260670000,-150.0,0.00039365,120]
[423617251,1780260670000,-524.11239551,0.00039379,120]
[423617272,1780260670000,-520.68892442,0.00039379,120]
[423617229,1780260670000,-618.72,0.00039365,120]
[423617230,1780260670000,-618.72,0.00039365,120]
[423617231,1780260670000,-618.72,0.00039365,120]
[423617235,1780260670000,-156.00595439,0.00039366,30]
[423617243,1780260670000,-524.11239551,0.00039379,120]
[423617237,1780260670000,-150.0,0.00039366,6]
[423617242,1780260670000,-300.0,0.00039374,10]
[423617232,1780260670000,-618.72,0.00039365,120]
[423617234,1780260670000,-422.00918074,0.00039365,7]
[423617236,1780260670000,-156.00595439,0.00039366,30]
[423617239,1780260670000,-200.0,0.0003937,120]
[423617241,1780260670000,-255.0,0.0003937,120]
[423617238,1780260670000,-200.0,0.0003937,120]
[423617240,1780260670000,-200.65,0.0003937,120]
[423617245,1780260670000,-524.11239551,0.00039379,120]
[423617255,1780260670000,-524.11239551,0.00039379,120]
[423617244,1780260670000,-524.11239551,0.00039379,120]
[423617250,1780260670000,-524.11239551,0.00039379,120]
[423617253,1780260670000,-524.11239551,0.00039379,120]
[423617246,1780260670000,-524.11239551,0.00039379,120]
[423617247,1780260670000,-524.11239551,0.00039379,120]
[423617274,1780260670000,-520.68892442,0.00039379,120]
[423617284,1780260670000,-520.68892442,0.00039379,120]
[423617270,1780260670000,-520.68892442,0.00039379,120]
[423617302,1780260670000,-8362.9511659,0.00039405,2]
[423617305,1780260670000,-3737.14944047,0.00039412,7]
[423617304,1780260670000,-1355.93393146,0.00039412,7]
[423617306,1780260670000,-502.26114607,0.00039412,7]
[423617308,1780260670000,-167.04437507,0.00039424,60]
[423617314,1780260670000,-217.14,0.00039432,7]
[423617310,1780260670000,-708.03,0.00039427,2]
[423617312,1780260670000,-383.09583771,0.00039432,2]
[423617311,1780260670000,-383.09583771,0.00039432,2]
[423617303,1780260670000,-151.0,0.00039407,14]
[423617307,1780260670000,-621.0,0.00039418,15]
[423617313,1780260670000,-184.98,0.00039432,7]
[423617315,1780260670000,-575.1,0.00039432,7]
[423617316,1780260670000,-151.0,0.00039432,7]
[423617320,1780260670000,-239.535013,0.00039432,30]
[423617318,1780260670000,-481.99,0.00039432,7]
[423617317,1780260670000,-572.84,0.00039432,7]
[423617319,1780260670000,-158.19804,0.00039432,30]
[423617281,1780260670000,-520.68892442,0.00039379,120]
[423617321,1780260670000,-95872.268191,0.00039452,2]
[423617309,1780260670000,-2103.75,0.00039425,60]
[423617299,1780260670000,-1354.48788215,0.000394,120]
[423617322,1780260670000,-404.23736009,0.00039452,120]
[423617300,1780260670000,-151.25,0.00039402,120]
[423617298,1780260670000,-1106.55898899,0.000394,120]
[423617277,1780260670000,-520.68892442,0.00039379,120]
[423617276,1780260670000,-520.68892442,0.00039379,120]
[423617279,1780260670000,-520.68892442,0.00039379,120]
[423617278,1780260670000,-520.68892442,0.00039379,120]
[423617286,1780260670000,-153.32827126,0.00039384,120]
[423617285,1780260670000,-520.68892448,0.00039379,120]
[423617282,1780260670000,-520.68892442,0.00039379,120]
[423617288,1780260670000,-175.38609669,0.00039384,120]
[423617292,1780260670000,-429669.6965004,0.00039392,2]
[423617275,1780260670000,-520.68892442,0.00039379,120]
[423617287,1780260670000,-165.00137927,0.00039384,120]
[423617289,1780260670000,-165.00137926,0.00039384,120]
[423617294,1780260670000,-1550.44220446,0.000394,120]
[423617296,1780260670000,-2474.04258438,0.000394,120]
[423617297,1780260670000,-1071.12217871,0.000394,120]
[423617301,1780260670000,-55319.3282486,0.00039405,2]
[423617283,1780260670000,-520.68892442,0.00039379,120]
[423617293,1780260670000,-2000.0,0.00039392,120]
[423617290,1780260670000,-175.38609665,0.00039384,120]
[423617291,1780260670000,-121479.77356963,0.00039391,24]
[423617295,1780260670000,-1127.71266082,0.000394,120]
[423617357,1780260671000,-2000.0,0.00039495,120]
[423617344,1780260671000,-470.77498212,0.00039454,120]
[423617359,1780260671000,-151.0,0.00039496,30]
[423617349,1780260671000,-434755.90220328,0.0003949,2]
[423617360,1780260671000,-151.0,0.00039496,30]
[423617353,1780260671000,-151.0,0.00039493,14]
[423617351,1780260671000,-151.0,0.00039492,14]
[423617341,1780260671000,-226.72668641,0.00039454,120]
[423617354,1780260671000,-151.0,0.00039493,14]
[423617355,1780260671000,-151.0,0.00039493,14]
[423617352,1780260671000,-151.0,0.00039492,14]
[423617350,1780260671000,-151.0,0.00039492,14]
[423617356,1780260671000,-300.0,0.00039495,10]
[423617361,1780260671000,-151.0,0.00039496,7]
[423617363,1780260671000,-184.98,0.00039496,7]
[423617364,1780260671000,-542.01,0.00039496,7]
[423617362,1780260671000,-475.13,0.00039496,7]
[423617345,1780260671000,-12343.4105714,0.00039455,2]
[423617348,1780260671000,-300.0,0.00039489,10]
[423617338,1780260671000,-213.02542349,0.00039454,120]
[423617335,1780260671000,-472.19583531,0.00039454,120]
[423617343,1780260671000,-832.1488628,0.00039454,120]
[423617368,1780260671000,-575.04,0.00039496,7]
[423617324,1780260671000,-170.33385209,0.00039454,120]
[423617323,1780260671000,-2717.76388848,0.00039452,120]
[423617325,1780260671000,-321.7721264,0.00039454,120]
[423617327,1780260671000,-438.20434828,0.00039454,120]
[423617326,1780260671000,-971.22534345,0.00039454,120]
[423617328,1780260671000,-310.93124365,0.00039454,120]
[423617330,1780260671000,-475.59866172,0.00039454,120]
[423617331,1780260671000,-288.095192,0.00039454,120]
[423617329,1780260671000,-176.66820595,0.00039454,120]
[423617333,1780260671000,-303.97509509,0.00039454,120]
[423617336,1780260671000,-513.2965115,0.00039454,120]
[423617332,1780260671000,-180.1608989,0.00039454,120]
[423617334,1780260671000,-1000.0,0.00039454,120]
[423617339,1780260671000,-1609.1825917,0.00039454,120]
[423617337,1780260671000,-306.28893402,0.00039454,120]
[423617340,1780260671000,-217.91523439,0.00039454,120]
[423617342,1780260671000,-531.47465004,0.00039454,120]
[423617347,1780260671000,-375.05,0.0003947,120]
[423617346,1780260671000,-1866.0266329,0.00039455,2]
[423617366,1780260671000,-575.1,0.00039496,7]
[423617358,1780260671000,-250.0,0.00039496,7]
[423617373,1780260671000,-151.0,0.00039496,120]
[423617390,1780260671000,-500.0,0.000395,14]
[423617388,1780260671000,-500.0,0.000395,14]
[423617397,1780260671000,-3141.80663418,0.0003953,120]
[423617394,1780260671000,-151.25,0.00039502,120]
[423617395,1780260671000,-219.53728179,0.0003951,2]
[423617396,1780260671000,-2000.0,0.00039526,120]
[423617398,1780260671000,-173.04,0.00039532,7]
[423617393,1780260671000,-500.0,0.000395,14]
[423617400,1780260671000,-197.45,0.00039532,2]
[423617401,1780260671000,-171.13,0.00039532,7]
[423617402,1780260671000,-150.0,0.00039537,120]
[423617404,1780260671000,-50000.0,0.00039538,57]
[423617403,1780260671000,-50000.0,0.00039538,56]
[423617409,1780260671000,-50000.0,0.00039538,60]
[423617405,1780260671000,-50000.0,0.00039538,58]
[423617407,1780260671000,-362.62154501,0.00039538,120]
[423617408,1780260671000,-50000.0,0.00039538,55]
[423617406,1780260671000,-50000.0,0.00039538,59]
[423617367,1780260671000,-575.1,0.00039496,7]
[423617387,1780260671000,-3347.22,0.000395,14]
[423617392,1780260671000,-500.0,0.000395,14]
[423617399,1780260671000,-263.27,0.00039532,7]
[423617391,1780260671000,-500.0,0.000395,14]
[423617389,1780260671000,-500.0,0.000395,14]
[423617370,1780260671000,-160.0,0.00039496,120]
[423617365,1780260671000,-283.46,0.00039496,7]
[423617371,1780260671000,-506.0,0.00039496,120]
[423617369,1780260671000,-157.0,0.00039496,120]
[423617386,1780260671000,-6100.0,0.000395,70]
[423617375,1780260671000,-156.0,0.00039496,120]
[423617374,1780260671000,-354.0,0.00039496,120]
[423617377,1780260671000,-150.0,0.00039497,120]
[423617385,1780260671000,-330.0,0.000395,30]
[423617372,1780260671000,-187.0,0.00039496,120]
[423617379,1780260671000,-500.0,0.000395,11]
[423617378,1780260671000,-500.0,0.000395,11]
[423617383,1780260671000,-3000.0,0.000395,90]
[423617410,1780260671000,-36547.40039709,0.00039538,61]
[423617381,1780260671000,-2000.0,0.000395,75]
[423617384,1780260671000,-1500.0,0.000395,120]
[423617380,1780260671000,-250.0,0.000395,120]
[423617382,1780260671000,-1266.21508217,0.000395,120]
[423617376,1780260671000,-778.0,0.00039496,120]
[423617430,1780260672000,-638.091163,0.00039122,30]
[423617422,1780260672000,-500.0,0.00013698,2]
[423617425,1780260672000,-4557.03611575,0.00032698,2]
[423617424,1780260672000,-8603.80443313,0.00032698,2]
[423617432,1780260672000,-638.091163,0.000393,30]
[423617427,1780260672000,-300.0,0.00035597,2]
[423617429,1780260672000,-500.0,0.00038356,120]
[423617423,1780260672000,-500.0,0.00013698,2]
[423617426,1780260672000,-864.0,0.00034769,30]
[423617421,1780260672000,-500.0,0.00013698,2]
[423617413,1780260672000,-638.091163,0.00037522,7]
[423617420,1780260672000,-500.0,0.00013698,2]
[423617417,1780260672000,-150.0,7.313e-05,2]
[423617418,1780260672000,-500.0,0.00013698,2]
[423617416,1780260672000,-3205.70049164,0.00039538,61]
[423617415,1780260672000,-5553.93003635,0.00039538,61]
[423617414,1780260672000,-392.138837,0.00039538,61]
[423617412,1780260672000,-500.0,0.00013698,2]
[423617411,1780260672000,-905.11640993,0.00039538,61]
[423617419,1780260672000,-500.0,0.00013698,2]
[423617428,1780260672000,-864.0,0.00035769,30]
[423617444,1780260672000,-50000.0,0.00039538,63]
[423617434,1780260672000,-3395.71382799,0.00039538,61]
[423617454,1780260672000,-1481241.19243867,0.00039539,20]
[423617431,1780260672000,-638.091163,0.000393,30]
[423617452,1780260672000,-85213.76482399,0.00039539,2]
[423617449,1780260672000,-864.0,0.00039539,120]
[423617450,1780260672000,-85213.76482399,0.00039539,2]
[423617446,1780260672000,-481.0,0.00039539,120]
[423617448,1780260672000,-1097.0,0.00039539,120]
[423617447,1780260672000,-265.0,0.00039539,120]
[423617445,1780260672000,-387.0,0.00039539,120]
[423617451,1780260672000,-85213.76482399,0.00039539,2]
[423617453,1780260672000,-85213.76482399,0.00039539,2]
[423617442,1780260672000,-852.06229781,0.00039538,62]
[423617433,1780260672000,-638.091163,0.000393,30]
[423617437,1780260672000,-298.87099998,0.00013698,2]
[423617436,1780260672000,-6723.53546384,0.00039538,62]
[423617439,1780260672000,-293.99386438,0.00037522,7]
[423617435,1780260672000,-7616.44940428,0.00039538,62]
[423617441,1780260672000,-500.0,0.00038356,120]
[423617443,1780260672000,-34807.95283407,0.00039538,62]
[423617440,1780260672000,-344.09729862,0.00037522,7]
[423617438,1780260672000,-201.12900002,0.00013698,2]
[423617468,1780260673000,-500.0,0.00038356,120]
[423617473,1780260673000,-638.091163,0.00039122,30]
[423617472,1780260673000,-638.091163,0.00039122,30]
[423617467,1780260673000,-500.0,0.00038356,120]
[423617466,1780260673000,-500.0,0.00038356,120]
[423617464,1780260673000,-638.091163,0.00037522,7]
[423617465,1780260673000,-500.0,0.00037628,7]
[423617462,1780260673000,-500.0,0.00036591,7]
[423617459,1780260673000,-500.0,0.00034794,7]
[423617463,1780260673000,-261.08302515,0.000373,30]
[423617469,1780260673000,-500.0,0.00038356,120]
[423617458,1780260673000,-190.0,0.00028463,10]
[423617482,1780260673000,-3545.60386451,0.00039539,20]
[423617470,1780260673000,-551.16841754,0.00038356,120]
[423617457,1780260673000,-864.0,0.00021,2]
[423617456,1780260673000,-864.0,0.0002,2]
[423617455,1780260673000,-189.183768,0.00016583,2]
[423617461,1780260673000,-1097.16968584,0.00035597,2]
[423617474,1780260673000,-500.0,0.00039199,7]
[423617460,1780260673000,-300.0,0.00035597,2]
[423617477,1780260673000,-638.091163,0.000393,30]
[423617493,1780260673000,-1148.27,0.00029,7]
[423617494,1780260673000,-572.56,0.00029113,7]
[423617491,1780260673000,-1148.27,0.00028859,30]
[423617490,1780260673000,-251.88,0.00028072,2]
[423617492,1780260673000,-572.56,0.00028986,30]
[423617489,1780260673000,-6066.0,0.00025089,2]
[423617488,1780260673000,-864.0,0.00023,2]
[423617487,1780260673000,-864.0,0.00022,2]
[423617484,1780260673000,-1105.799808,0.00039539,20]
[423617495,1780260673000,-300.0,0.00035597,2]
[423617485,1780260673000,-300.0,0.00035597,2]
[423617486,1780260673000,-8794.25862472,0.00039539,20]
[423617481,1780260673000,-19618.77052784,0.00039539,20]
[423617476,1780260673000,-365.01560358,0.00039299,7]
[423617475,1780260673000,-500.0,0.0003926,7]
[423617471,1780260673000,-500.0,0.0003885,7]
[423617478,1780260673000,-638.091163,0.000393,30]
[423617480,1780260673000,-638.091163,0.000393,30]
[423617479,1780260673000,-638.091163,0.000393,30]
[423617483,1780260673000,-1333.5,0.00039539,20]
[423617500,1780260674000,-187.71827,0.00039122,30]
[423617499,1780260674000,-3166.1,0.00038972,2]
[423617497,1780260674000,-3166.1,0.00038287,2]
[423617496,1780260674000,-261.08302515,0.000373,30]
[423617498,1780260674000,-187.71827,0.00038356,30]
[423617502,1780260674000,-638.091163,0.000393,30]
[423617505,1780260674000,-7435.72,0.00029786,10]
[423617503,1780260674000,-638.09116,0.000393,30]
[423617504,1780260674000,-79358.79470877,0.00039539,20]
[423617507,1780260674000,2000.0,0.00029996,120]
[423617501,1780260674000,-13160.84054888,0.000392,2]
[423617506,1780260674000,-2390.1264763,0.00039539,20]